Cogmind - Beta 13 *** ADVENTURER MODE // 2024.05.03 @ 23:19:08 Player: yub Result: Self-destructed Performance ------------- Evolutions (1) 500 Regions Visited (3) 600 Robots Destroyed (8) 40 Value Destroyed (110) 110 Prototype IDs (1) 20 Alien Tech Used (0) 0 Bonus (0) 0 TOTAL SCORE: 1270 Bonus ------- None Cogmind --------- Core Integrity 373/400 Matter 264/300 Energy 100/100 System Corruption 0% Temperature Cool (0) Movement Core (150) Ox2 Location -9/Materials Parts ------- > --- POWER (1) -------- (None) > --- PROPULSION (3) --- (None) > --- UTILITY (3) ------ Small Storage Unit ECM Suite > --- WEAPON (2) ------- (None) > --- INVENTORY (8) ---- Flight Unit Signal Interpreter Small Laser Advanced Beam Cannon Light Assault Rifle Light Assault Rifle Mining Laser Peak State ------------ > --- POWER ------------ Light Ion Engine > --- PROPULSION ------- Flight Unit Flight Unit Flight Unit > --- UTILITY ---------- Small Storage Unit Seismic Detector ECM Suite > --- WEAPON ----------- Advanced Beam Cannon Light Assault Rifle > --- INVENTORY -------- Flight Unit Signal Interpreter Small Laser Light Assault Rifle Mining Laser [Rating: 11] Favorites ----------- Power Light Ion Engine Engine Light Ion Engine Propulsion Flight Unit Wheel Compact Wheel Flight Unit Flight Unit Utility Small Storage Unit Device Seismic Detector Storage Small Storage Unit Weapon Light Assault Rifle Energy Gun Small Laser Energy Cannon Advanced Beam Cannon Ballistic Gun Light Assault Rifle Special Weapon Mining Laser Build | -11 -10 -10 -9 ------- Run | Yrd Mat Min Mat Slots Evolved 2 | . . . 2 Power . | . . . . Propulsion 1 | . . . 1 Utility 1 | . . . 1 Weapon . | . . . . Parts Attached 18 | 6 5 . 7 Power 3 | 1 . . 2 Engine 3 | 1 . . 2 Core . | . . . . Reactor . | . . . . Propulsion 5 | 2 2 . 1 Treads . | . . . . Leg . | . . . . Wheel 2 | 2 . . . Hover . | . . . . Flight 3 | . 2 . 1 Utility 3 | 1 1 . 1 Device 2 | . 1 . 1 Storage 1 | 1 . . . Processor . | . . . . Hackware . | . . . . Protection . | . . . . Artifact . | . . . . Weapon 7 | 2 2 . 3 Energy Gun 2 | 1 1 . . Energy Cannon 1 | . . . 1 Ballistic Gun 3 | 1 1 . 1 Ballistic Cannon . | . . . . Launcher . | . . . . Special Weapon 1 | . . . 1 Impact Weapon . | . . . . Slashing Weapon . | . . . . Piercing Weapon . | . . . . Special Melee Weapon . | . . . . Unidentified Prototypes 1 | . . . 1 Parts Lost 5 | . . . 5 Power 1 | . . . 1 Propulsion 3 | . . . 3 Utility 1 | . . . 1 Weapon . | . . . . Highest Loss Streak 5 | . . . 5 To Critical Strikes . | . . . . Average Slot Usage (%) 83 | . 89 72 78 Engine 11 | . 14 5 9 Wheel 4 | . 7 . . Flight 24 | . 20 28 28 Device 10 | . 4 14 20 Storage 13 | . 14 14 11 Energy Gun 7 | . 12 5 . Ballistic Gun 11 | . 15 5 6 Naked Turns . | . . . . Heaviest Build 12 | 10 11 11 12 Greatest Support 32 | 32 32 8 12 Greatest Overweight (x) 3 | . 1 1 3 Average Overweight (x) . | . . . . Largest Inventory Capacity 8 | 8 8 8 8 Average Capacity 7 | 6 8 8 8 Most Carried 8 | 5 6 8 8 Average Carried 4 | 2 3 7 5 Final Capacity 8 | 8 8 8 8 Final Carried 8 | 2 5 8 7 Class Distribution -------------------- 100% | Mutant Dominant Class ---------------- Mutant | -10/Materials Mutant | -10/Mines Mutant | -9/Materials Resources | -11 -10 -10 -9 ----------- Run | Yrd Mat Min Mat Matter Collected 357 | 255 92 . 10 Remotely . | . . . . Salvage Created 132 | . 122 . 10 Parts 12 | . 10 . 2 Haulers Intercepted . | . . . . Recyclers Shooed . | . . . . Parts Field Recycled . | . . . . Retrieved Matter . | . . . . Parts Self-Destructed . | . . . . Prevented . | . . . . Kills | -11 -10 -10 -9 ------- Run | Yrd Mat Min Mat Combat Hostiles Destroyed 7 | . 7 . . Guns 7 | . 7 . . Classes Destroyed 3 | . 2 . 1 Watcher 1 | . . . 1 Swarmer 6 | . 6 . . Grunt 1 | . 1 . . Best Kill Streak 3 | . 3 . 1 Combat Bots Only 3 | . 3 . . Max Kills in Single Turn 1 | . 1 . 1 Gunslinging . | . . . . Exploded . | . . . . Melee . | . . . . Uniques/NPCs Destroyed . | . . . . Combat | -11 -10 -10 -9 -------- Run | Yrd Mat Min Mat Hostile Shots Fired 47 | . 26 . 21 Missed 15 | . 7 . 8 Damage Taken 331 | . 116 . 215 Core 58 | . 31 . 27 Absorbed by Shields . | . . . . Ignored by Resistances 100 | . 40 . 60 Core Remaining (%) 93 | 100 . 87 . Volleys Fired 20 | . 16 . 4 Largest 2 | . 2 . 1 Hottest 100 | . 60 . 100 Shots Fired 36 | . 32 . 4 Gun 33 | . 32 . 1 Cannon . | . . . . Launcher . | . . . . Special 3 | . . . 3 Kinetic 24 | . 23 . 1 Thermal 12 | . 9 . 3 Explosive . | . . . . Electromagnetic . | . . . . Robot Hit Streak 11 | . 11 . 9 Robot Miss Streak 1 | . 1 . . Penetration Max . | . . . . Secondary Targets 1 | . 1 . . Max Gunslinging Chain 1 | . 1 . . Shots Hit Robots 28 | . 24 . 4 Core Hits 12 | . 9 . 3 Critical Kills . | . . . . Critical Parts Destroyed . | . . . . Critical Strikes . | . . . . Melee Attacks . | . . . . Impact . | . . . . Slashing . | . . . . Piercing . | . . . . Sneak Attacks . | . . . . Combat Hostiles . | . . . . Follow-up Attacks . | . . . . Damage Inflicted 308 | . 230 . 78 Guns 236 | . 230 . 6 Cannons . | . . . . Explosions . | . . . . Melee . | . . . . Ramming . | . . . . Kinetic 169 | . 163 . 6 Thermal 139 | . 67 . 72 Explosive . | . . . . Electromagnetic . | . . . . Impact . | . . . . Slashing . | . . . . Piercing . | . . . . Highest Corruption . | . . . . Average Corruption . | . . . . Corruption Purged . | . . . . Corruption Blocked . | . . . . Overload Shots . | . . . . Overflow Damage . | . . . . Projectiles . | . . . . Explosions . | . . . . Melee . | . . . . Knockbacks . | . . . . Impact . | . . . . Kinetic . | . . . . Secondary . | . . . . Self-Inflicted Damage . | . . . . Shots . | . . . . Rammed . | . . . . Targets Rammed . | . . . . Kicked . | . . . . Crushed . | . . . . Highest Temperature 72 | . 72 . 48 Average Temperature 28 | . 31 . 21 Received Heat Transfer 57 | . 12 . 45 Siege Activations . | . . . . Robots Corrupted . | . . . . Combat Hostiles . | . . . . Parts Fried . | . . . . Impact Corruptions . | . . . . Robots Melted . | . . . . Combat Hostiles . | . . . . Parts Melted . | . . . . Heat Transferred 300 | . 150 . 150 Parts Sabotaged . | . . . . Parts Stolen . | . . . . Parts Stripped . | . . . . Power Chain Reactions . | . . . . Alert | -11 -10 -10 -9 ------- Run | Yrd Mat Min Mat Peak Influence 170 | . 170 16 34 Initial 16 | . . 16 4 Average 31 | . 49 16 10 Maximum Alert Level . | . . . . Low Security (%) 100 | 100 100 100 100 Level 1 . | . . . . Level 2 . | . . . . Level 3 . | . . . . Level 4 . | . . . . Level 5 . | . . . . High Security . | . . . . Max Security . | . . . . Squads Dispatched 2 | . 2 . . Investigation 2 | . 2 . . Extermination . | . . . . Reinforcement . | . . . . Assault . | . . . . Garrison . | . . . . Intercept . | . . . . Searches Triggered . | . . . . Construction Impeded . | . . . . Haulers Reinforced . | . . . . Active Scanning Responses . | . . . . Cargo Convoy Interrupts . | . . . . Stealth | -11 -10 -10 -9 --------- Run | Yrd Mat Min Mat Distress Signals 1 | . . 1 . Communications Jammed . | . . . . Distress Signals . | . . . . Times Spotted 19 | . 8 2 9 Peak Tracking Total 7 | . 4 2 7 Tactical Retreats . | . . . . Traps | -11 -10 -10 -9 ------- Run | Yrd Mat Min Mat Traps Triggered . | . . . . Indirectly . | . . . . Trap Hack Attempts . | . . . . Triggered . | . . . . Disarmed 6 | . 6 . . Reprogrammed . | . . . . Reused . | . . . . Traps Extracted . | . . . . Installed . | . . . . Triggered . | . . . . Machines | -11 -10 -10 -9 ---------- Run | Yrd Mat Min Mat Machines Disabled . | . . . . Max in Single Turn . | . . . . Machines Repaired . | . . . . Machines Dismantled . | . . . . Machines Sabotaged . | . . . . Overloaded Fab Kills . | . . . . Hacking | -11 -10 -10 -9 --------- Run | Yrd Mat Min Mat Machines Accessed 7 | . 5 . 2 Terminals 7 | . 5 . 2 Fabricators . | . . . . Repair Stations . | . . . . Recycling Units . | . . . . Scanalyzers . | . . . . Garrison Access . | . . . . Total Hacks 20 | . 16 . 4 Successful 8 | . 5 . 3 Failed 12 | . 11 . 1 Catastrophic . | . . . . Database Lockouts . | . . . . Manual 5 | . 5 . . Terminals 20 | . 16 . 4 Fabricators . | . . . . Repair Stations . | . . . . Recycling Units . | . . . . Scanalyzers . | . . . . Garrison Access . | . . . . Terminal Hacks 8 | . 5 . 3 Record 1 | . 1 . . Alert Level 1 | . 1 . . Unreport Threat 1 | . 1 . . Locate Traps 1 | . . . 1 Disarm Traps 1 | . 1 . . Recall Investigation 1 | . 1 . . Hauler Manifests 1 | . . . 1 Zone Layout 1 | . . . 1 Fabricator Hacks . | . . . . Repair Station Hacks . | . . . . Recycling Unit Hacks . | . . . . Scanalyzer . | . . . . Garrison Access Hacks . | . . . . Unauthorized Hacks . | . . . . Terminals . | . . . . Fabricators . | . . . . Repair Stations . | . . . . Recycling Units . | . . . . Scanalyzers . | . . . . Garrison Access . | . . . . Data Cores Recovered . | . . . . Used . | . . . . Hacking Detections 5 | . 5 . . Full Trace Events 2 | . 2 . . Feedback Events . | . . . . Feedback Blocked . | . . . . Robot Schematics Acquired . | . . . . Robots Built . | . . . . Authchips . | . . . . Time . | . . . . Total Robot Build Rating . | . . . . Part Schematics Acquired . | . . . . Parts Built . | . . . . Authchips . | . . . . Time . | . . . . Total Part Build Rating . | . . . . Parts Repaired . | . . . . Time . | . . . . Parts Recycled . | . . . . Recycled Matter . | . . . . Retrieved Matter . | . . . . Retrieved Components . | . . . . Parts Scanalyzed . | . . . . Part Schematics Acquired . | . . . . Parts Damaged . | . . . . Bothacking | -11 -10 -10 -9 ------------ Run | Yrd Mat Min Mat Used RIF Installer . | . . . . Robots Hacked . | . . . . Non-combat . | . . . . Combat . | . . . . Robot Hacks Applied . | . . . . Relay Couplers Released . | . . . . Fabnet Peak Effective % . | . . . . Robots Rewired . | . . . . Allies Hacked . | . . . . Hacks Repelled . | . . . . Allies | -11 -10 -10 -9 -------- Run | Yrd Mat Min Mat Total Allies . | . . . . Largest Group . | . . . . Highest-Rated Group . | . . . . Highest-Rated Ally . | . . . . Total Orders . | . . . . Ally Attacks . | . . . . Total Damage . | . . . . Kills . | . . . . Allies Corrupted . | . . . . Allies Melted . | . . . . Intel | -11 -10 -10 -9 ------- Run | Yrd Mat Min Mat Robot Analysis Total . | . . . . Derelict Logs Recovered 1 | . . 1 . Drone Launches . | . . . . Drone Recoveries . | . . . . Exploration | -11 -10 -10 -9 ------------- Run | Yrd Mat Min Mat Turns Passed 666 | 41 357 106 162 Spaces Moved 625 | 31 243 195 156 Core 16 | 6 . . 10 Treads . | . . . . Legs . | . . . . Wheels 80 | 25 55 . . Hover . | . . . . Flight 529 | . 188 195 146 Fastest Speed 34 | 50 100 37 34 Average Speed 74 | 90 113 48 42 Slowest Speed 200 | 100 117 117 200 Overloaded Moves . | . . . . Propulsion Burnouts . | . . . . Robots Hopped 1 | . . 1 . Cave-ins Triggered . | . . . . Exploration Rate (%) 26 | 3 45 43 15 Regions Visited 3 Branch Regions 1 Pre-discovered Areas . | . . . . Known Exits Taken . | . . . . Unknown Exits Taken 3 | 1 1 1 . Scrap Searched 2 | . . 2 . Spaces Dug . | . . . . Terrain Destroyed . | . . . . Melee . | . . . . Projectile . | . . . . AOE . | . . . . Terrain Rammed . | . . . . Walls Destroyed . | . . . . Machines Disabled . | . . . . Actions | -11 -10 -10 -9 --------- Run | Yrd Mat Min Mat Total 786 | 43 296 206 241 Wait 100 | . 23 8 69 Move 620 | 30 242 192 156 Hop 1 | . . 1 . Pick Up 18 | 7 7 1 3 Fast Attach 1 | 1 . . . Attach 13 | 5 2 . 6 Detach 5 | . . 3 2 Swap 4 | . 3 . 1 Drop 4 | . 3 1 . Fire 20 | . 16 . 4 Melee . | . . . . Ram . | . . . . Kick . | . . . . Crush . | . . . . Escape Stasis . | . . . . Rewire . | . . . . Trap . | . . . . Miscellaneous . | . . . . Route ------- -11/Scrapyard -10/Materials -10/Mines -9/Materials History --------- Turn | Location | Event 15 | -11/Scrapyard | Discovered new exit (range 16) 42 | -11/Scrapyard | Entered Materials 310 | -10/Materials | Build established: Mutant 362 | -10/Materials | Discovered new exit (range 7) 399 | -10/Materials | Entered Mines 420 | -10/Mines | Assembled infested the area 452 | -10/Mines | Discovered new exit (range 11) 465 | -10/Mines | Learned Materials non-interactive machine intel 505 | -10/Mines | Entered Materials 505 | -9/Materials | Evolved 2 slots: Propulsion x1, Utility x1 506 | -9/Materials | Loaded intel: 37 non-interactive machine locations 667 | -9/Materials | Self-destructed Last Messages --------------- (1 escort) A-02 Transporter 6x Huge Storage Unit A-02 Transporter 4x Shotgun 00596_ Acquired Prototype Energy Cannon. 00597_ Identified Adv. Beam Cannon. 00617_ W-16 Scout destroyed. 00621_ Acquired 10 matter. 00621_ Acquired Lgt. Ion Engine. 00632_ C-30 ARC bursts open, deploying its payload. 00632_ L-31 Rogue unfolds itself. 00632_ G-34 Mercenary unfolds itself. 00633_ Flight Unit destroyed. 00638_ Lgt. Ion Engine severed. 00642_ G-34 Mercenary destroyed. 00647_ Seismic Detector destroyed. 00649_ Flight Unit destroyed. 00657_ Lgt. Ion Engine destroyed. Map ----- +----------------------------------------------------+ | ???????"""???????????????????????????????????????? | | ???????"""??????????????????????""" ?????????????? | | ???????"""??????????????????????""" ?????????????? | | ????????????????????????????????""" ?????????????? | | ????????????????????????????????? ???????"""???? | | ????????????????????????????????? ??????"""""??? | | ????????????????????????????????? #??????"""""??? | | ""???????????????????????????????# #??????"""""??? | | ""???????????????????????????????# #???????"""???? | | ""???????????????????????????????# #?????????????? | | ?????????????????????????????????# #?????????????? | | ""???????????????????????????????#%#?????????????? | | ""?????????????????????????#######/##????????????? | | ""????????????????????"""??# !%*#????????????? | | ??????????????????????"""??# *[#????????????? | | ??????????????????????"""??# #????????????? | | ??????????????????????"""??#""" #????????????? | | ??????????????????????"""??#""" #????????????? | | ???????????????????????????#""" #????????????? | | ???????????????????????????#""" Y #????????????? | | ???????????????????????????#""" #????????????? | | ???????????????????????????# g #????????????? | | ???????????##################l#######????????????? | | ?????????? ###########??? | | ?????????? # #??? | | ?????????? @l # [ #??? | | ??????????????################### + #??? | | ????????????????????????????????# # #??? | | ????????????????????????????????# ###########??? | | ???????????????????????????????## ##???????????? | | ???????????????????????????????# ! ############# | | ????????????????????????????#### = | | ???????????????????????????##! T | | ???????????????????????????#! | | ???????????????????????????#! ##########+## | | ???????????????????????????#! ###+####### | | ???????????????????????????#! # ## " """"" | | ???????????????????????????##! # "" ## T """"" | | ????????????????????????????#### """## " """"" | | ???????????????????????????????# S"## """"" | | ???????????????????????????????# ## """"" | | ???????????????????????????????# ## | | ???????????????????????????????################### | | | | | | | | | | | | | | | +----------------------------------------------------+ Best States ------------- Heat Dissipation 28 Energy Generation 10 Energy Capacity 125 Matter Stores 300 Matter Capacity 300 Sight Range 16 Terrain Scan Density 10 ECM Strength 1 Resistance: KI 20 Resistance: TH 20 Resistance: EX 20 Resistance: EM 20 Resistance: I 20 Resistance: S 20 Resistance: P 20 Evasion (%) 63 Offensive Hacking 10 Item Schematics ----------------- None Robot Schematics ------------------ None Fabricated ------------ Nothing Alien Tech Used ----------------- None Achievements -------------- None Challenges ------------ None Game ------ Seed StorageDrainedDissipator Manual? 0 Play Time 00:15:28 Cumulative 57.2 hours Start 2024.05.03 @ 23:07:17 End 2024.05.03 @ 23:19:08 Sessions 1 Manual Loads 0 Difficulty Adventurer Special Mode None Game No. 76 Rogue 17 Adventurer 59 Explorer 0 Win Type - Total 0 Types 0/0/0/0/0/0/0/0/0 Lore% 26 Gallery% 48 Achievement% 42 Wizard Run 0 Options --------- Layout 1 ASCII 0 Keyboard 0 Movement Mouse Keybinds 0 Fullscreen 1 Font 32/SmallcapsGlow Map View 50x35 Zoom Use 0% Tactical HUD 1 Map Filters NONE Filters NONE Steam 1 RUN: 71e8e7ab-74a7-436a-99eb-1dfd383a5081